Cogmind - Beta 16.1 @@@ ROGUE MODE // 2026.04.05 @ 12:14:29 Player: konomiyu Result: Destroyed by P-60 Hacker with Shock Rifle Performance ------------- Evolutions (3) 1500 Regions Visited (6) 1200 Robots Destroyed (75) 375 Value Destroyed (2191) 2191 Prototype IDs (6) 120 Alien Tech Used (0) 0 Bonus (60) 60 TOTAL SCORE: 5446 Bonus ------- Follower Combat Kills 60 Cogmind --------- Core Integrity 0/700 Matter 275/300 Energy 66/100 System Corruption 23% Temperature Cool (0) Movement Core (50) Location -7/Lower Caves Parts ------- > --- POWER (1) -------- (None) > --- PROPULSION (6) --- Medium Treads Medium Treads Makeshift Leg > --- UTILITY (4) ------ Structural Scanner Hacking Suite Hacking Suite Dynamic Insulation System > --- WEAPON (2) ------- (None) > --- INVENTORY (5) ---- Light Nuclear Core Improved Signal Interpreter Molecular Deconstructor Axe Peak State ------------ > --- POWER ------------ Light Nuclear Core > --- PROPULSION ------- Light Treads Carbon-fiber Leg Flight Unit Improved Flight Unit Cesium-ion Thruster > --- UTILITY ---------- Medium Storage Unit Experimental Sensor Array Hacking Suite Hacking Suite > --- WEAPON ----------- Improved Datajack Axe > --- INVENTORY -------- Light Nuclear Core Improved Heat Sink Structural Scanner Improved Signal Interpreter Advanced ECM Suite Hacking Suite Particle Gun Precision Beam Rifle Particle Cannon [Rating: 38] Favorites ----------- Power Light Nuclear Core Engine Light Ion Engine Power Core Light Nuclear Core Propulsion Light Treads Treads Light Treads Leg Aluminum Leg Wheel Wheel Hover Unit Gravmag System Flight Unit Improved Flight Unit Utility Large Storage Unit Device Seismic Detector Storage Large Storage Unit Hackware Hacking Suite Protection Layered Light Armor Plating Weapon Particle Gun Energy Gun Particle Gun Energy Cannon Particle Cannon Ballistic Gun Assault Rifle Special Weapon Mining Laser Impact Weapon Hammer Slashing Weapon Axe Special Melee Weapon Improved Datajack Build | -11 -10 -10 -10 -8 -7 -7 ------- Run | Yrd Mat Min Sub Mat Fac Low Slots Evolved 6 | . . . . 4 2 . Power . | . . . . . . . Propulsion 4 | . . . . 4 . . Utility 2 | . . . . . 2 . Weapon . | . . . . . . . Parts Attached 93 | 7 11 4 3 37 22 9 Power 13 | 1 1 2 1 5 3 . Engine 3 | 1 . 1 1 . . . Core 10 | . 1 1 . 5 3 . Reactor . | . . . . . . . Propulsion 47 | 2 4 . 1 23 12 5 Treads 14 | 1 3 . . 6 . 4 Leg 12 | . . . . 10 1 1 Wheel 9 | 1 1 . 1 1 5 . Hover 3 | . . . . . 3 . Flight 9 | . . . . 6 3 . Utility 17 | 2 1 1 . 4 6 3 Device 10 | 1 . 1 . 4 2 2 Storage 3 | 1 1 . . . 1 . Processor . | . . . . . . . Hackware 3 | . . . . . 2 1 Protection 1 | . . . . . 1 . Artifact . | . . . . . . . Weapon 16 | 2 5 1 1 5 1 1 Energy Gun 8 | 1 3 1 . 3 . . Energy Cannon 2 | . . . 1 1 . . Ballistic Gun 1 | 1 . . . . . . Ballistic Cannon . | . . . . . . . Launcher . | . . . . . . . Special Weapon 2 | . 1 . . . . 1 Impact Weapon 1 | . 1 . . . . . Slashing Weapon 1 | . . . . 1 . . Piercing Weapon . | . . . . . . . Special Melee Weapon 1 | . . . . . 1 . Unidentified Prototypes 4 | . . . . 2 1 1 Corrupted Parts 3 | . . . . . . 3 System Corruption 22 | . . . . . . 22 Parts Lost 52 | . 3 4 2 16 16 11 Power 8 | . . 2 . 4 2 . Propulsion 32 | . 1 . 1 10 13 7 Utility 5 | . 1 . . 1 1 2 Weapon 7 | . 1 2 1 1 . 2 Highest Loss Streak 7 | . 2 3 2 7 7 6 To Critical Strikes . | . . . . . . . Average Backups 10 | 3 8 12 14 14 9 4 Power 1 | . 1 1 1 . . 1 Propulsion 1 | 1 2 3 3 2 . . Utility 4 | . 2 5 7 8 4 1 Weapon 2 | 1 2 1 1 2 2 1 Tool/Special . | . . . . . . . Unused Backups 6 | . 1 . . 4 . 1 Power . | . . . . . . . Propulsion . | . . . . . . . Utility 4 | . . . . 3 . 1 Weapon 1 | . 1 . . . . . Tool/Special 1 | . . . . 1 . . Average Slot Usage (%) 84 | . 97 90 95 87 75 45 Engine 2 | . 1 6 14 1 . . Core 7 | . 12 7 . 7 6 . Treads 9 | . 15 14 16 7 3 3 Leg 5 | . . . . 22 2 4 Wheel 7 | . 12 14 11 1 3 2 Flight 8 | . . . . 15 19 4 Device 9 | . 12 12 14 8 5 8 Storage 10 | . 14 14 14 9 7 . Hackware 4 | . . . . . 14 13 Energy Gun 11 | . 24 21 11 7 1 . Energy Cannon 2 | . . . 12 5 1 . Slashing Weapon 1 | . . . . . 4 . Peak Build Rating 38 | 7 11 12 13 30 38 32 Average Rating 17 | 5 9 10 11 20 30 19 On Entrance 11 | . 7 10 9 10 13 32 Avg Prop Armor Cover (%) 15 | 5 12 14 12 13 18 22 Naked Turns . | . . . . . . . Heaviest Build 38 | 12 30 30 37 38 29 20 Greatest Support 120 | 20 40 10 40 120 48 56 Greatest Overweight (x) 6 | . 2 2 3 3 6 2 Average Overweight (x) 1 | . 1 2 2 . 1 . Largest Inventory Capacity 15 | 8 15 15 15 15 15 10 Average Capacity 12 | 7 11 15 15 15 11 5 Most Carried 15 | 5 12 14 15 15 15 8 Average Carried 10 | 3 8 12 14 14 9 4 Final Capacity 15 | 8 15 15 15 15 10 5 Final Carried 15 | 5 12 13 13 15 8 5 Class Distribution -------------------- 48% | Mutant 32% | Scavenger-Mutant 13% | Hacker-Mutant 3% | Sprinter Dominant Class ---------------- Mutant | -10/Materials Mutant | -10/Mines Mutant | -10/Subcaves Scavenger-Mutant | -8/Materials Hacker-Mutant | -7/Factory Scavenger-Mutant | -7/Lower Caves Resources | -11 -10 -10 -10 -8 -7 -7 ----------- Run | Yrd Mat Min Sub Mat Fac Low Matter Collected 1732 | 61 483 20 70 472 531 95 Remotely . | . . . . . . . Salvage Created 2846 | 24 569 192 71 1227 763 . Parts 163 | 5 38 11 2 63 44 . Haulers Intercepted 5 | . 2 . . 3 . . Recyclers Shooed 3 | 2 1 . . . . . Parts Field Recycled . | . . . . . . . Retrieved Matter . | . . . . . . . Parts Self-Destructed 7 | . . . 5 . . 2 Prevented . | . . . . . . . Parts Restored . | . . . . . . . Kills | -11 -10 -10 -10 -8 -7 -7 ------- Run | Yrd Mat Min Sub Mat Fac Low Combat Hostiles Destroyed 51 | . 12 4 2 22 11 . Melee 4 | . . . . . 4 . Guns 29 | . 12 4 2 6 5 . Cannons 16 | . . . . 14 2 . Classes Destroyed 13 | 1 5 . 1 3 3 . Worker 1 | . . . . 1 . . Builder 3 | . . . . 1 2 . Tunneler 7 | 2 1 2 . . 2 . Hauler 5 | . 2 . . 3 . . Recycler 4 | . . . . . 4 . Operator 3 | . 2 . . 1 . . Watcher 1 | . 1 . . . . . Swarmer 13 | . 3 . . 3 7 . Grunt 30 | . 9 4 . 17 . . Sentry 3 | . . . . 2 1 . Hunter 1 | . . . . . 1 . Programmer 2 | . . . . . 2 . Subdweller 2 | . . . 2 . . . Best Kill Streak 7 | 1 3 2 2 7 5 . Combat Bots Only 7 | . 3 2 2 7 5 . Max Kills in Single Turn 1 | 1 1 1 1 1 1 . Gunslinging . | . . . . . . . Exploded . | . . . . . . . Melee 1 | . . . . . 1 . Uniques/NPCs Destroyed . | . . . . . . . Combat | -11 -10 -10 -10 -8 -7 -7 -------- Run | Yrd Mat Min Sub Mat Fac Low Hostile Shots Fired 492 | . 47 10 21 153 185 76 Missed 136 | . 11 3 10 45 40 27 Hits 356 | . 36 7 11 108 145 49 Projectile 356 | . 36 7 11 108 145 49 Critical Strikes 15 | . . . . 10 3 2 Damage Taken 5119 | . 397 288 428 1635 1659 712 Core 1276 | . 58 16 175 324 488 215 Absorbed by Shields . | . . . . . . . Core Remaining (%) 47 | 100 . . . 41 . . Volleys Fired 170 | 6 55 12 14 62 20 1 Largest 2 | 2 2 2 1 2 2 2 Hottest 148 | 60 105 105 65 148 129 129 Shots Fired 314 | 12 100 24 14 123 39 2 Gun 213 | 12 91 24 14 39 32 1 Cannon 92 | . . . . 84 7 1 Launcher . | . . . . . . . Special 9 | . 9 . . . . . Kinetic 18 | 6 12 . . . . . Thermal 296 | 6 88 24 14 123 39 2 Explosive . | . . . . . . . Electromagnetic . | . . . . . . . Robot Hit Streak 16 | 6 9 7 16 16 4 1 Robot Miss Streak 6 | 2 6 2 . 2 2 1 Penetration Max . | . . . . . . . Secondary Targets 5 | . 1 . . 1 3 . Max Gunslinging Chain 1 | . 1 . . 1 1 . Shots Hit Robots 246 | 9 62 19 14 89 52 1 Core Hits 104 | 3 31 8 3 41 18 . Critical Kills . | . . . . . . . Critical Parts Destroyed 1 | . . . . 1 . . Critical Strikes 7 | . . . . 4 3 . Burn 4 | . . . . 3 1 . Smash 1 | . . . . 1 . . Sever 2 | . . . . . 2 . Melee Attacks 61 | . 8 . . 10 42 1 Impact 13 | . 8 . . 5 . . Slashing 48 | . . . . 5 42 1 Piercing . | . . . . . . . Sneak Attacks 13 | . 1 . . 2 10 . Combat Hostiles . | . . . . . . . Follow-up Attacks . | . . . . . . . Damage Inflicted 5327 | 111 856 269 220 2044 1790 37 Guns 2237 | 111 795 269 220 507 319 16 Cannons 1486 | . . . . 1383 82 21 Explosions . | . . . . . . . Melee 1604 | . 61 . . 154 1389 . Ramming . | . . . . . . . Kinetic 180 | 55 125 . . . . . Thermal 3543 | 56 670 269 220 1890 401 37 Explosive . | . . . . . . . Electromagnetic . | . . . . . . . Impact 127 | . 61 . . 66 . . Slashing 1477 | . . . . 88 1389 . Piercing . | . . . . . . . Highest Corruption 23 | . . . . 1 1 23 Average Corruption 2 | . . . . 1 1 3 Corruption Purged . | . . . . . . . Corruption Blocked . | . . . . . . . Effects 15 | . . . . 2 4 9 Message Errors 6 | . . . . 1 2 3 Matter Fused 2 | . . . . 1 . 1 Heat Flow Errors 1 | . . . . . 1 . Energy Discharges 4 | . . . . . . 4 Data Loss (minor) 1 | . . . . . . 1 Alerts 1 | . . . . . 1 . Overload Shots . | . . . . . . . Overflow Damage 342 | . . . . 82 260 . Projectiles . | . . . . . . . Explosions . | . . . . . . . Melee 342 | . . . . 82 260 . Knockbacks . | . . . . . . . Impact . | . . . . . . . Kinetic . | . . . . . . . Secondary . | . . . . . . . Self-Inflicted Damage . | . . . . . . . Shots . | . . . . . . . Rammed . | . . . . . . . Targets Rammed . | . . . . . . . Kicked . | . . . . . . . Crushed . | . . . . . . . Highest Temperature 617 | . 237 153 1 318 617 117 Average Temperature 100 | . 61 57 1 91 278 60 Received Heat Transfer 1794 | . 159 99 87 936 162 351 Effects 14 | . . . . 1 13 . Energy Bleed 2 | . . . . . 2 . Interference 3 | . . . . 1 2 . Matter Decay 4 | . . . . . 4 . Short Circuit 1 | . . . . . 1 . Damage (minor) 1 | . . . . . 1 . Damage (major) 3 | . . . . . 3 . Siege Activations . | . . . . . . . Martial Activations . | . . . . . . . Shielding Activations . | . . . . . . . Robots Disrupted . | . . . . . . . Combat Hostiles . | . . . . . . . Robots Corrupted . | . . . . . . . Combat Hostiles . | . . . . . . . Parts Fried . | . . . . . . . Impact Corruptions 1 | . . . . 1 . . Robots Melted 2 | . . . . 2 . . Combat Hostiles 2 | . . . . 2 . . Parts Melted 19 | . 5 1 1 7 5 . Heat Transferred 7292 | 125 1491 607 518 3552 925 74 Parts Sabotaged . | . . . . . . . Parts Stolen . | . . . . . . . Parts Stripped . | . . . . . . . Power Chain Reactions . | . . . . . . . Alert | -11 -10 -10 -10 -8 -7 -7 ------- Run | Yrd Mat Min Sub Mat Fac Low Maximum Alert Level 1 | . . . . 1 . . Low Security (%) 97 | 100 100 100 . 89 100 . Level 1 2 | . . . . 10 . . Level 2 . | . . . . . . . Level 3 . | . . . . . . . Level 4 . | . . . . . . . Level 5 . | . . . . . . . High Security . | . . . . . . . Max Security . | . . . . . . . Peak Influence 269 | 5 105 145 . 269 109 . Initial 109 | . . 17 . . 109 . Average 63 | 1 37 42 . 139 40 . Influence Increases 2134 | 10 480 275 . 853 396 120 Destroy 0b10 Robot/C 1020 | . 240 120 . 440 220 . Destroy 0b10 Robot/NC 120 | 10 30 10 . 30 40 . Destroy Leader 222 | . 56 20 . 86 60 . Allied During Kill 3 | . . 3 . . . . Trap Triggered on 0b10 10 | . . . . . 10 . Successful Hack 55 | . 12 . . 13 30 . Select Force Hacks 90 | . 60 . . 30 . . Disable Machine 150 | . 45 90 . 15 . . Destroy Structure 59 | . 7 32 . 14 6 . Partial Spotted 75 | . . . . 75 . . Lose Combat Pursuer 330 | . 30 . . 150 30 120 Influence Decreases 2134 | 10 435 305 15 610 637 122 Entered New Map 172 | . . 28 8 . 134 2 Time Decay 1581 | 10 405 247 . 450 364 105 Lost Part 311 | . 30 30 . 160 76 15 Lost Ally 7 | . . . 7 . . . Purge Threat 63 | . . . . . 63 . Squads Dispatched 18 | . 5 1 . 7 5 . Investigation 11 | . 3 1 . 5 2 . Extermination 2 | . . . . . 2 . Reinforcement 5 | . 2 . . 2 1 . Assault . | . . . . . . . Garrison . | . . . . . . . Intercept . | . . . . . . . Searches Triggered . | . . . . . . . Construction Impeded 2 | . . . . 1 1 . Haulers Reinforced . | . . . . . . . Active Scanning Responses . | . . . . . . . Cargo Convoy Interrupts . | . . . . . . . Stealth | -11 -10 -10 -10 -8 -7 -7 --------- Run | Yrd Mat Min Sub Mat Fac Low Distress Signals 6 | . 1 . . 5 . . Communications Jammed . | . . . . . . . Distress Signals . | . . . . . . . Times Spotted 115 | . 29 7 4 51 14 10 Peak Tracking Total 11 | . 4 3 2 11 4 4 Tactical Retreats 15 | . 1 . 1 7 2 4 Traps | -11 -10 -10 -10 -8 -7 -7 ------- Run | Yrd Mat Min Sub Mat Fac Low Traps Triggered 9 | . 4 . 3 . 2 . Indirectly . | . . . . . . . Trap Hack Attempts 9 | . . . . . 9 . Triggered . | . . . . . . . Disarmed . | . . . . . . . Reprogrammed 3 | . . . . . 3 . Reused 1 | . . . . . 1 . Traps Extracted . | . . . . . . . Installed . | . . . . . . . Triggered 1 | . . . . . 1 . Machines | -11 -10 -10 -10 -8 -7 -7 ---------- Run | Yrd Mat Min Sub Mat Fac Low Machines Disabled 11 | . 3 6 . 1 . 1 Max in Single Turn 1 | . 1 . . 1 . 1 Machines Repaired . | . . . . . . . Machines Dismantled . | . . . . . . . Machines Sabotaged . | . . . . . . . Overloaded Fab Kills . | . . . . . . . Hacking | -11 -10 -10 -10 -8 -7 -7 --------- Run | Yrd Mat Min Sub Mat Fac Low Machines Accessed 24 | . 8 1 . 8 6 1 Terminals 16 | . 6 . . 6 4 . Fabricators . | . . . . . . . Repair Stations . | . . . . . . . Recycling Units 3 | . 2 . . 1 . . Scanalyzers 3 | . . . . 1 2 . Garrison Access . | . . . . . . . Total Hacks 60 | . 20 1 . 24 14 1 Successful 25 | . 8 1 . 5 10 1 Failed 35 | . 12 . . 19 4 . Catastrophic 7 | . . . . 6 1 . Database Lockouts . | . . . . . . . Manual 44 | . 16 . . 20 7 1 Terminals 48 | . 18 . . 21 9 . Fabricators . | . . . . . . . Repair Stations . | . . . . . . . Recycling Units 3 | . 2 . . 1 . . Scanalyzers 7 | . . . . 2 5 . Garrison Access . | . . . . . . . Terminal Hacks 14 | . 5 1 . 2 5 1 Record 1 | . . . . . 1 . Part Schematic 1 | . . . . . 1 . Robot Analysis 2 | . 2 . . . . . Prototype ID Bank 1 | . 1 . . . . . Open Door 2 | . . 1 . . . 1 Branch Access Points 1 | . . . . 1 . . Terminal Index 3 | . 1 . . 1 1 . Unreport Threat 2 | . . . . . 2 . Registered Components 1 | . 1 . . . . . Fabricator Hacks . | . . . . . . . Repair Station Hacks . | . . . . . . . Recycling Unit Hacks . | . . . . . . . Scanalyzer 6 | . . . . 1 5 . Insert Component 1 | . . . . . 1 . Analyze 1 | . . . . . 1 . Retrieve Study 4 | . . . . 1 3 . Garrison Access Hacks . | . . . . . . . Unauthorized Hacks 5 | . 3 . . 2 . . Terminals 2 | . 1 . . 1 . . Operators 2 | . 1 . . 1 . . Fabricators . | . . . . . . . Repair Stations . | . . . . . . . Recycling Units 3 | . 2 . . 1 . . Tunnel 3 | . 2 . . 1 . . Scanalyzers . | . . . . . . . Garrison Access . | . . . . . . . Data Cores Recovered . | . . . . . . . Used . | . . . . . . . Hacking Detections 17 | . 5 . . 7 5 . Full Trace Events 7 | . 1 . . 5 1 . Feedback Events 1 | . . . . 1 . . Corruption 1 | . . . . 1 . . Feedback Blocked . | . . . . . . . Robot Schematics Acquired . | . . . . . . . Robots Built . | . . . . . . . Authchips . | . . . . . . . Time . | . . . . . . . Total Robot Build Rating . | . . . . . . . Part Schematics Acquired 2 | . . . . . 2 . Parts Built . | . . . . . . . Authchips . | . . . . . . . Time . | . . . . . . . Total Part Build Rating . | . . . . . . . Part Studies Acquired 4 | . . . . 1 3 . Parts Repaired . | . . . . . . . Time . | . . . . . . . Parts Recycled . | . . . . . . . Recycled Matter . | . . . . . . . Retrieved Matter . | . . . . . . . Retrieved Components . | . . . . . . . Parts Scanalyzed 1 | . . . . . 1 . Part Schematics Acquired 1 | . . . . . 1 . Parts Damaged . | . . . . . . . Bothacking | -11 -10 -10 -10 -8 -7 -7 ------------ Run | Yrd Mat Min Sub Mat Fac Low Used RIF Installer . | . . . . . . . Robots Hacked . | . . . . . . . Non-combat . | . . . . . . . Combat . | . . . . . . . Robot Hacks Applied . | . . . . . . . Relay Couplers Released . | . . . . . . . Fabnet Peak Effective % . | . . . . . . . Robots Rewired . | . . . . . . . Allies Hacked . | . . . . . . . Hacks Repelled . | . . . . . . . Allies | -11 -10 -10 -10 -8 -7 -7 -------- Run | Yrd Mat Min Sub Mat Fac Low Total Allies 4 | . . 4 . . . . Largest Group 4 | . . 4 3 . . . Highest-Rated Group 68 | . . 68 40 . . . Highest-Rated Ally 31 | . . 31 16 . . . Total Orders . | . . . . . . . Ally Attacks 19 | . . 4 15 . . . Total Damage 531 | . . 392 139 . . . Kills 2 | . . 2 . . . . Allies Corrupted . | . . . . . . . Allies Melted . | . . . . . . . Intel | -11 -10 -10 -10 -8 -7 -7 ------- Run | Yrd Mat Min Sub Mat Fac Low Active Infowar (turns) 4118 | 13 1311 599 380 503 905 407 Sensors 942 | . . . . . 884 58 Structural 349 | . . . . . . 349 Seismic 2790 | 13 1311 599 380 487 . . ECM 37 | . . . . 16 21 . Robot Analysis Total 2 | . 2 . . . . . Derelict Logs Recovered 2 | . . 1 1 . . . Drone Launches . | . . . . . . . Drone Recoveries . | . . . . . . . Exploration | -11 -10 -10 -10 -8 -7 -7 ------------- Run | Yrd Mat Min Sub Mat Fac Low Turns Passed 5703 | 94 1528 688 380 1195 1284 534 Spaces Moved 4174 | 39 1050 565 235 1014 625 646 Core 541 | 1 2 . . . 6 532 Treads 332 | 38 106 . 46 52 . 90 Legs 290 | . . . . 290 . . Wheels 2070 | . 942 565 189 133 217 24 Hover 1 | . . . . . 1 . Flight 940 | . . . . 539 401 . Fastest Speed 23 | 50 95 110 110 23 85 50 Average Speed 99 | 157 108 110 142 74 125 73 Slowest Speed 350 | 160 240 110 240 190 350 160 Overloaded Moves . | . . . . . . . Propulsion Burnouts . | . . . . . . . Robots Hopped 10 | . . . . 10 . . Potential Cave-ins . | . . . . . . . Cave-ins Triggered . | . . . . . . . Exploration Rate (%) 53 | 4 98 97 18 79 16 60 Regions Visited 6 Branch Regions 3 Pre-discovered Areas 4 | . 2 1 . 1 . . Known Exits Taken . | . . . . . . . Unknown Exits Taken 6 | 1 1 1 1 1 1 . Scrap Searched 3 | . . 1 . . . 2 Spaces Dug 17 | . 6 . . 5 6 . Terrain Destroyed 23 | . 6 . . 11 6 . Melee 16 | . 5 . . 5 6 . Projectile 7 | . 1 . . 6 . . AOE . | . . . . . . . Terrain Rammed . | . . . . . . . Walls Destroyed . | . . . . . . . Machines Disabled . | . . . . . . . Actions | -11 -10 -10 -10 -8 -7 -7 --------- Run | Yrd Mat Min Sub Mat Fac Low Total 5224 | 56 1300 606 258 1294 1007 703 Wait 604 | . 149 24 . 135 262 34 Move 4148 | 38 1049 564 234 993 624 646 Hop 10 | . . . . 10 . . Pick Up 34 | 5 11 2 2 9 4 1 Fast Attach 52 | 7 6 3 1 16 12 7 Attach 35 | . 2 1 1 10 15 6 Detach 17 | . . . . 10 5 2 Swap 59 | . 15 . 4 28 11 1 Drop 25 | . 5 . 2 11 3 4 Fire 170 | 6 55 12 14 62 20 1 Melee 61 | . 8 . . 10 42 1 Ram . | . . . . . . . Kick . | . . . . . . . Crush . | . . . . . . . Escape Stasis . | . . . . . . . Rewire . | . . . . . . . Trap 9 | . . . . . 9 . Miscellaneous . | . . . . . . . Route ------- -11/Scrapyard -10/Materials (discovered 5 exits: [*Mat x3] / *Min / [*Sub]) -10/Mines (discovered 3 exits: [*Mat x2] / [*Sub]) -10/Subcaves -8/Materials -7/Factory -7/Lower Caves History --------- Turn | Location | Event 12 | -11/Scrapyard | Discovered new exit (range 15) 95 | -11/Scrapyard | Entered Materials 354 | -10/Materials | Discovered new exit (range 9) 671 | -10/Materials | Discovered new exit (range 4) 740 | -10/Materials | Discovered new exit (range 5) 791 | -10/Materials | Build established: Mutant 1019 | -10/Materials | Discovered new exit (range 15) 1466 | -10/Materials | Discovered new exit (range 10) 1623 | -10/Materials | Entered Mines 1759 | -10/Mines | Discovered new exit (range 5) 1767 | -10/Mines | Met a Derelict shopkeep closing up shop 1863 | -10/Mines | Found a damaged Exp. Sensor Array with a note attached 1866 | -10/Mines | Found Prototype Device 1897 | -10/Mines | Received a Mining Laser from a helpful Derelict 1979 | -10/Mines | Learned location of Zion (-6) 2026 | -10/Mines | Lost 3 parts (1p2w) 2101 | -10/Mines | Assisted by bots powering up and referring to "LRC-V3" 2248 | -10/Mines | Discovered new exit (range 10) 2298 | -10/Mines | Discovered new exit (range 8) 2311 | -10/Mines | Entered Subcaves 2311 | -10/Subcaves | Accompanied by 3 allies 2312 | -10/Subcaves | Approached by a straggling Scientist 2316 | -10/Subcaves | Ambushed by Subdwellers from Twisted Machinery 2343 | -10/Subcaves | Core integrity fell below 50% 2365 | -10/Subcaves | Lost 4 allies 2450 | -10/Subcaves | Core integrity fell below 20% 2481 | -10/Subcaves | A swath of the cavern ceiling suddenly collapsed 2542 | -10/Subcaves | Learned Materials trap positions 2676 | -10/Subcaves | Discovered new exit (range 14) 2691 | -10/Subcaves | Entered Materials 2691 | -8/Materials | Evolved 4 slots: Propulsion x4 2692 | -8/Materials | Loaded intel: 24 trap records 2880 | -8/Materials | Lost 3 parts (1p2n) 2893 | -8/Materials | Destroyed 7 combat bots 3039 | -8/Materials | Lost 7 parts (2p4n1w) 3138 | -8/Materials | Build established: Scavenger-Mutant 3875 | -8/Materials | Discovered new exit (range 15) 3876 | -8/Materials | Core integrity fell below 50% 3886 | -8/Materials | Entered Factory 3886 | -7/Factory | Evolved 2 slots: Utility x2 3917 | -7/Factory | Lost 3 parts (2n1u) 3992 | -7/Factory | Identified Exp. Sensor Array 4459 | -7/Factory | Build established: Hacker-Mutant 4482 | -7/Factory | Discovered new exit (range 16) 4668 | -7/Factory | Lost 7 parts (1p5n1u) 4918 | -7/Factory | Core integrity fell below 50% 4985 | -7/Factory | Lost 6 parts (1p5n) 5170 | -7/Factory | Entered Lower Caves 5222 | -7/Lower Caves | Core integrity fell below 20% 5257 | -7/Lower Caves | Encountered a Warlord checkpoint 5275 | -7/Lower Caves | Lost 6 parts (4n1u1w) 5491 | -7/Lower Caves | Lost 3 parts (2n1u) 5503 | -7/Lower Caves | Spotted B-75 Beast 5518 | -7/Lower Caves | Acquired the password to a Derelict Tinkerer's latest research 5526 | -7/Lower Caves | Found Prototype Special Weapon 5526 | -7/Lower Caves | Identified Molecular Deconstructor 5613 | -7/Lower Caves | System corruption reached 10% 5704 | -7/Lower Caves | Destroyed by P-60 Hacker with Shock Rifle Last Messages --------------- 05615_ Complication: System interference. 05615_ Structural Scanner temporarily disabled. 05625_ X>SANXC|3ZCJF=H2Z>WLVRS179G#XUD#K5YQ 05646_ System corrupted: Energy discharge (-8). 05662_ NKFCONWGYS=BD